bitfinex/quotes_SOLUSD_20250413
["timestamp","ask_amount","ask_price","bid_price","bid_amount"]
[1744519196662,0.03,131.37,131.36,0.28432314]
[1744519198249,0.03,131.37,131.36,21.63098665]
[1744519200780,0.03,131.37,131.33,1.5242]
[1744519200973,13.62190194,131.37,131.32,13.59190194]
[1744519201156,13.59190194,131.36,131.31,13.73406351]
[1744519201554,13.59190194,131.35,131.3,1.6049]
[1744519201769,13.59190194,131.34,131.29,21.11190194]
[1744519201969,13.59190194,131.33,131.28,0.14216157]
[1744519202276,13.59190194,131.33,131.28,14.01838665]
[1744519202566,13.59190194,131.34,131.29,13.59190194]
[1744519202874,21.20600194,131.34,131.29,13.59190194]
[1744519203047,21.20600194,131.34,131.28,0.42648471]
[1744519203244,13.59190194,131.33,131.28,8.04358471]
[1744519203444,13.59190194,131.33,131.28,21.35116351]
[1744519203643,13.59190194,131.33,131.29,0.14216157]
[1744519204059,13.59190194,131.32,131.27,9.2226]
[1744519204258,13.59190194,131.32,131.27,22.81450194]
[1744519204577,13.59190194,131.3,131.25,15.28086157]
[1744519204873,7.6161,131.3,131.25,28.87276351]
[1744519205045,21.20760194,131.31,131.26,13.59190194]
[1744519205473,81.0,131.35,131.3,13.59190194]
[1744519205771,13.59190194,131.35,131.3,13.87622508]
[1744519206479,21.20490194,131.36,131.31,13.59190194]
[1744519206656,21.20510194,131.35,131.3,13.87622508]
[1744519206862,13.59190194,131.34,131.29,21.20810194]
[1744519207053,13.59190194,131.33,131.28,0.28432314]
[1744519207264,13.59190194,131.32,131.27,21.20930194]
[1744519207470,7.6132,131.35,131.27,21.20930194]
[1744519207471,13.59190194,131.33,131.27,21.20930194]
[1744519207871,13.59190194,131.33,131.28,13.59190194]
[1744519208180,7.6132,131.35,131.3,13.59190194]
[1744519208349,21.20510194,131.35,131.3,13.59190194]
[1744519208771,13.59190194,131.33,131.29,0.28432314]
[1744519209282,13.59190194,131.34,131.29,21.49282508]
[1744519209468,13.59190194,131.33,131.28,21.20900194]
[1744519209871,13.59190194,131.33,131.28,7.6171]
[1744519210171,7.6139,131.34,131.25,7.52]
[1744519210172,13.59190194,131.31,131.25,7.52]
[1744519210469,7.6139,131.34,131.27,13.59190194]
[1744519210470,13.59190194,131.32,131.27,13.59190194]
[1744519210859,13.59190194,131.33,131.28,13.59190194]
[1744519211062,13.59190194,131.32,131.27,13.87622508]
[1744519211379,21.20710194,131.32,131.27,0.28432314]
[1744519211674,13.59190194,131.31,131.26,21.21020194]
[1744519212062,13.59190194,131.3,131.25,7.52]
[1744519212264,13.59190194,131.29,131.24,15.19680194]
[1744519212475,13.59190194,131.31,131.26,13.59190194]
[1744519212854,21.20710194,131.32,131.26,13.59190194]
[1744519213372,21.20710194,131.32,131.26,21.20990194]
[1744519213674,13.59190194,131.31,131.26,21.20990194]
[1744519214178,13.59190194,131.31,131.26,13.59190194]
[1744519214476,13.59190194,131.3,131.25,21.49512508]
[1744519214954,7.6152,131.32,131.23,6.24207802]
[1744519214955,13.59190194,131.29,131.23,6.24207802]
[1744519215158,32.59484886,131.32,131.23,13.62227996]
[1744519215159,13.59190194,131.28,131.23,13.62227996]
[1744519215350,21.20950194,131.28,131.23,7.65027802]
[1744519215771,13.59190194,131.27,131.23,0.03037802]
[1744519215953,13.59190194,131.26,131.23,0.03037802]
[1744519216169,13.59190194,131.24,131.23,0.03037802]
[1744519216685,13.59190194,131.25,131.23,0.03037802]
[1744519216852,7.44,131.27,131.23,13.62227996]
[1744519217054,102.20950194,131.28,131.23,13.62227996]
[1744519217451,13.59190194,131.27,131.23,0.03037802]
[1744519218484,102.20950194,131.28,131.23,0.03037802]
[1744519218789,26.0,131.29,131.24,13.59190194]
[1744519219081,39.59190194,131.29,131.24,15.19090194]
[1744519219454,39.59190194,131.29,131.24,1.599]
[1744519219874,47.20890194,131.29,131.24,1.599]
[1744519220052,47.20890194,131.29,131.24,15.19090194]
[1744519220864,47.20890194,131.29,131.24,21.21130194]
[1744519221064,47.20890194,131.29,131.23,21.5266031]
[1744519221275,13.59190194,131.25,131.23,0.03037802]
[1744519221782,13.59190194,131.26,131.23,0.03037802]
[1744519221986,26.0,131.29,131.23,0.03037802]
[1744519222167,13.59190194,131.29,131.24,13.59190194]
[1744519222364,88.6158,131.31,131.26,0.14216157]
[1744519222563,81.0,131.31,131.26,13.59190194]
[1744519222872,102.20750194,131.31,131.26,13.59190194]
[1744519223515,81.0,131.31,131.27,13.59190194]
[1744519223682,21.20710194,131.32,131.27,13.59190194]
[1744519224081,13.59190194,131.32,131.28,7.6173]
[1744519224251,13.59190194,131.31,131.26,21.49442508]
[1744519226362,21.20740194,131.31,131.26,21.49442508]
[1744519226887,13.59190194,131.31,131.26,21.49442508]
[1744519227089,21.20650194,131.33,131.28,0.28432314]
[1744519227768,21.20650194,131.33,131.28,13.87622508]
[1744519228088,13.59190194,131.32,131.28,0.28432314]
[1744519229969,7.6146,131.33,131.28,0.28432314]
[1744519230173,13.59190194,131.32,131.28,0.28432314]
[1744519230789,21.20700194,131.32,131.28,0.28432314]
[1744519232889,13.59190194,131.33,131.28,0.28432314]
[1744519233389,7.6138,131.34,131.28,0.28432314]
[1744519233568,7.6138,131.34,131.28,21.49312508]
[1744519233883,7.6138,131.34,131.29,13.59190194]
[1744519234265,13.59190194,131.33,131.28,21.49312508]
[1744519235391,21.20570194,131.34,131.28,21.49312508]
[1744519235992,21.20680194,131.33,131.28,13.87622508]
[1744519236370,13.59190194,131.32,131.27,15.23060194]
[1744519236883,13.59190194,131.32,131.27,1.6387]
[1744519238086,21.20740194,131.32,131.27,1.6387]
[1744519238283,21.20740194,131.32,131.27,15.23060194]
[1744519238899,21.20740194,131.32,131.27,22.84840194]
[1744519239678,21.20740194,131.32,131.27,1.6387]
[1744519240891,21.20740194,131.32,131.27,9.2565]
[1744519241484,21.20740194,131.32,131.27,1.6387]
[1744519242290,21.20740194,131.32,131.28,0.28432314]
[1744519245072,21.20740194,131.32,131.27,1.6387]
[1744519245073,13.59190194,131.31,131.27,1.6387]
[1744519245400,8.71237841,131.3,131.25,0.28432314]
[1744519245699,8.71237841,131.3,131.25,0.14216157]
[1744519246012,8.71237841,131.3,131.25,0.28432314]
[1744519246194,8.71237841,131.29,131.24,7.8257]
[1744519246385,8.71237841,131.26,131.23,0.03037802]
[1744519246588,8.71237841,131.25,131.23,0.03037802]
[1744519247091,16.33197841,131.24,131.23,0.03037802]
[1744519247300,21.24604051,131.24,131.23,0.03037802]
[1744519247602,13.62644051,131.25,131.23,0.03037802]
[1744519247895,13.62644051,131.26,131.23,0.03037802]
[1744519248199,13.62644051,131.25,131.23,0.03037802]
[1744519249085,21.24544051,131.25,131.23,0.03037802]
[1744519251103,21.24504051,131.26,131.23,0.03037802]
[1744519251498,81.0,131.27,131.23,0.31470116]
[1744519251684,94.62644051,131.27,131.23,0.31470116]
[1744519252015,13.62644051,131.28,131.23,20.22234167]
[1744519252176,81.0,131.32,131.27,13.62644051]
[1744519252504,94.62644051,131.32,131.27,13.62644051]
[1744519252681,19.0347,131.34,131.29,13.62644051]
[1744519252682,7.6138,131.34,131.29,13.62644051]
[1744519252887,21.24024051,131.34,131.29,13.62644051]
[1744519253811,21.24024051,131.34,131.3,0.28432314]
[1744519253987,0.03,131.35,131.31,13.91076365]
[1744519254305,0.03,131.35,131.31,0.28432314]
[1744519254515,0.03,131.35,131.32,13.62644051]
[1744519254880,0.03,131.35,131.33,0.28432314]
[1744519255101,0.03,131.35,131.33,13.91076365]
[1744519256611,0.03,131.35,131.33,0.28432314]
[1744519257513,0.03,131.35,131.33,13.91076365]
[1744519257689,0.03,131.35,131.34,13.91076365]
[1744519258211,0.03,131.35,131.34,32.70257408]
[1744519259109,0.03,131.35,131.34,40.31637408]
[1744519259312,0.03,131.35,131.34,0.28432314]
[1744519259518,0.03,131.35,131.34,13.91076365]
[1744519260201,0.03,131.35,131.34,21.52456365]
[1744519260396,0.03,131.35,131.34,46.58747408]
[1744519261413,0.03,131.35,131.34,27.93782522]
[1744519262416,0.03,131.35,131.34,6.69758471]
[1744519262715,0.03,131.35,131.34,20.32402522]
[1744519263012,0.03,131.35,131.34,6.2711]
[1744519263203,0.03,131.35,131.31,14.8749]
[1744519263403,0.03,131.35,131.33,13.91076365]
[1744519263920,0.03,131.35,131.34,13.91076365]
[1744519264900,0.03,131.35,131.34,0.28432314]
[1744519265790,0.03,131.35,131.34,13.91076365]
[1744519265990,0.03,131.35,131.34,21.52456365]
[1744519268415,0.03,131.35,131.34,13.91076365]
[1744519268896,0.03,131.35,131.34,21.52456365]
[1744519269726,0.03,131.35,131.34,0.28432314]
[1744519270425,0.03,131.35,131.31,28.50184051]
[1744519270599,0.03,131.35,131.32,0.28432314]
[1744519270919,0.03,131.35,131.31,20.88644051]
[1744519271099,0.03,131.35,131.29,0.14216157]
[1744519271100,13.62644051,131.34,131.29,13.62644051]
[1744519271297,13.62644051,131.33,131.29,0.28432314]
[1744519271500,13.62644051,131.33,131.28,13.76860208]
[1744519271913,13.62644051,131.33,131.29,0.28432314]
[1744519272089,13.62644051,131.33,131.28,13.76860208]
[1744519272289,7.6142,131.34,131.3,0.28432314]
[1744519272515,21.24064051,131.34,131.3,0.28432314]
[1744519272830,0.03,131.35,131.3,13.91076365]
[1744519273001,21.26974051,131.35,131.3,13.91076365]
[1744519273534,7.6433,131.35,131.31,13.62644051]
[1744519273820,21.26974051,131.35,131.3,13.91076365]
[1744519274207,21.26974051,131.35,131.3,21.52676365]
[1744519274403,0.03,131.35,131.31,13.62644051]
[1744519274708,0.03,131.35,131.32,0.28432314]
[1744519274910,0.03,131.35,131.34,13.91076365]
[1744519275827,0.03,131.35,131.34,0.28432314]
[1744519276701,0.03,131.35,131.34,13.91076365]
[1744519277325,0.03,131.35,131.34,21.52456365]
[1744519279017,0.03,131.35,131.34,21.66672522]
[1744519281022,0.03,131.35,131.34,0.28432314]
[1744519281432,0.03,131.35,131.34,13.91076365]
[1744519281627,0.03,131.35,131.34,21.38240208]
[1744519281829,0.03,131.35,131.34,21.52456365]
[1744519282222,0.03,131.35,131.34,7.89812314]
[1744519282423,0.03,131.35,131.34,21.52456365]
[1744519282941,0.03,131.35,131.34,21.66672522]
[1744519285438,0.03,131.35,131.34,8.04028471]
[1744519285739,0.03,131.35,131.34,21.66672522]
[1744519288037,0.03,131.35,131.34,0.28432314]
[1744519288339,0.03,131.35,131.33,13.62644051]
[1744519289033,0.03,131.35,131.33,0.28432314]
[1744519289432,0.03,131.35,131.31,23.59853379]
[1744519289633,0.03,131.35,131.33,0.28432314]
[1744519290644,8.73107222,131.35,131.3,8.70107222]
[1744519291040,0.03,131.35,131.31,0.28432314]
[1744519291225,0.03,131.35,131.33,0.28432314]
[1744519291922,8.73107222,131.35,131.3,8.70107222]
[1744519292128,8.73107222,131.35,131.31,0.28432314]
[1744519292330,8.70107222,131.32,131.25,267.5215]
[1744519292535,8.70107222,131.32,131.27,8.70107222]
[1744519292749,16.31627222,131.32,131.28,0.28432314]
[1744519293219,21.2228144,131.32,131.28,0.28432314]
[1744519293425,7.6138,131.34,131.3,13.6076144]
[1744519293732,0.03,131.35,131.31,13.6076144]
[1744519293733,7.6434,131.35,131.31,13.6076144]
[1744519294135,0.03,131.35,131.32,13.6076144]
[1744519294340,0.03,131.35,131.32,0.28432314]
[1744519298608,13.6076144,131.34,131.29,20.7476144]
[1744519298773,13.6076144,131.34,131.3,0.28432314]
[1744519299371,13.6076144,131.34,131.29,20.7476144]
[1744519299660,21.2216144,131.34,131.3,0.28432314]
[1744519300467,13.6376144,131.35,131.3,21.50793754]
[1744519300760,0.03,131.35,131.32,0.28432314]
[1744519301464,0.03,131.35,131.32,13.89193754]
[1744519302358,0.03,131.35,131.32,0.28432314]
[1744519302567,0.03,131.35,131.31,21.2229144]
[1744519302875,0.03,131.35,131.31,13.89193754]
[1744519303872,0.03,131.35,131.31,21.50693754]
[1744519304168,0.03,131.35,131.34,14.03409911]
[1744519304975,0.03,131.35,131.34,32.68374797]
[1744519305271,0.03,131.35,131.34,39.78374797]
[1744519306272,0.03,131.35,131.34,47.39754797]
[1744519309575,0.03,131.37,131.35,0.42648471]
[1744519309769,0.03,131.37,131.36,32.68374797]
[1744519310269,0.03,131.37,131.36,40.29634797]
[1744519313077,0.03,131.37,131.36,21.64669911]
[1744519313670,0.03,131.37,131.36,40.29634797]
[1744519315780,0.0001,131.37,131.36,53.90396237]
[1744519316484,0.0001,131.37,131.36,40.29634797]
[1744519316788,0.0001,131.37,131.36,53.90396237]
[1744519318290,0.0001,131.37,131.36,40.29634797]
[1744519321391,0.0001,131.37,131.36,35.38389612]
[1744519322279,0.0001,131.37,131.33,18.79181043]
[1744519322584,0.0001,131.37,131.33,8.83732412]
[1744519322775,0.0001,131.37,131.34,0.28432314]
[1744519323503,0.0001,131.37,131.34,7.6136]
[1744519323673,0.0001,131.37,131.34,21.20767045]
[1744519323868,0.0001,131.37,131.35,0.28432314]
[1744519328199,0.0001,131.37,131.35,13.87839359]
[1744519328495,0.0001,131.37,131.35,0.28432314]
[1744519329978,13.59407045,131.36,131.31,13.59407045]
[1744519330186,13.59407045,131.34,131.3,7.1]
[1744519330391,13.59407045,131.34,131.29,0.28432314]
[1744519330701,13.59407045,131.34,131.28,21.21097045]
[1744519330897,13.59407045,131.34,131.29,13.59407045]
[1744519331104,13.59407045,131.34,131.3,0.28432314]
[1744519332102,21.20837045,131.34,131.3,0.28432314]
[1744519332281,21.20837045,131.34,131.29,13.59407045]
[1744519332604,21.20837045,131.34,131.3,0.28432314]
[1744519334601,13.59407045,131.33,131.3,0.28432314]
[1744519334909,21.20837045,131.34,131.3,0.28432314]
[1744519336709,0.0001,131.37,131.32,13.59407045]
[1744519337811,7.6123,131.37,131.33,0.28432314]
[1744519338906,21.20637045,131.37,131.33,0.28432314]
[1744519339201,21.20637045,131.37,131.29,13.59407045]
[1744519339202,13.59407045,131.34,131.29,13.59407045]
[1744519339395,13.59407045,131.33,131.29,0.28432314]
[1744519340210,13.59407045,131.34,131.29,0.28432314]
[1744519340393,21.20867045,131.33,131.29,0.28432314]
[1744519342807,7.6146,131.33,131.29,0.28432314]
[1744519343014,19.0305,131.37,131.31,0.28432314]
[1744519343189,13.59407045,131.35,131.31,0.28432314]
[1744519343385,21.20667045,131.36,131.31,13.87839359]
[1744519343693,0.0001,131.37,131.33,0.28432314]
[1744519343694,21.20637045,131.37,131.33,0.28432314]
[1744519344710,0.0001,131.37,131.35,0.28432314]
[1744519346513,0.0001,131.37,131.35,13.87839359]
[1744519347195,0.0001,131.37,131.34,13.59407045]
[1744519347409,13.59417045,131.37,131.33,0.28432314]
[1744519347912,0.0001,131.37,131.35,0.28432314]
[1744519349811,19.98167045,131.36,131.27,0.14216157]
[1744519349994,13.59407045,131.34,131.29,0.14216157]
[1744519350293,13.59407045,131.34,131.29,0.42648471]
[1744519350488,13.59407045,131.35,131.3,13.59407045]
[1744519350906,7.6137,131.35,131.31,13.87839359]
[1744519351391,21.20777045,131.35,131.31,0.28432314]
[1744519354014,13.59407045,131.34,131.29,13.87839359]
[1744519354518,40.24087045,131.35,131.29,13.87839359]
[1744519354718,13.59407045,131.34,131.29,13.87839359]
[1744519355303,13.59407045,131.34,131.29,0.28432314]
[1744519355623,7.6144,131.33,131.29,0.28432314]
[1744519356028,7.6144,131.33,131.29,13.87839359]
[1744519356701,13.59407045,131.35,131.3,13.59407045]
[1744519356895,13.59407045,131.35,131.3,0.14216157]
[1744519357118,7.6126,131.36,131.3,0.14216157]
[1744519357328,13.59407045,131.35,131.3,0.14216157]
[1744519357727,7.6138,131.34,131.3,0.14216157]
[1744519359925,7.6138,131.34,131.29,13.87839359]
[1744519360231,21.20787045,131.34,131.29,13.87839359]
[1744519360426,13.59407045,131.32,131.27,0.14216157]
[1744519360613,13.59407045,131.31,131.27,0.14216157]
[1744519360926,13.6896,131.34,131.27,14.02055516]
[1744519361144,13.6896,131.34,131.29,0.28432314]
[1744519361324,7.6138,131.34,131.3,13.59407045]
[1744519361529,7.6138,131.34,131.31,0.28432314]
[1744519363309,7.6132,131.35,131.31,0.28432314]
[1744519364633,7.6132,131.35,131.31,13.87839359]
[1744519366837,15.17037045,131.37,131.32,13.73623202]
[1744519367135,0.0001,131.37,131.34,13.87839359]
[1744519369322,0.0001,131.37,131.33,0.28432314]
[1744519369528,0.0001,131.37,131.33,13.87839359]
[1744519370442,7.6121,131.37,131.33,13.87839359]
[1744519370940,7.6121,131.37,131.33,0.28432314]
[1744519371134,7.6121,131.37,131.33,13.87839359]
[1744519374341,13.59407045,131.36,131.32,0.42648471]
[1744519374722,7.6121,131.37,131.32,14.02055516]
[1744519375839,7.6121,131.37,131.34,0.28432314]
[1744519376442,0.0001,131.37,131.34,0.28432314]
[1744519378646,0.0001,131.37,131.33,0.28432314]
[1744519379545,13.59417045,131.37,131.33,0.28432314]
[1744519381243,16.31338781,131.37,131.33,0.28432314]
[1744519383844,16.31338781,131.37,131.32,0.42648471]
[1744519384753,7.6125,131.37,131.32,9.12737252]
[1744519385327,16.31338781,131.37,131.32,0.42648471]
[1744519385548,8.70088781,131.36,131.32,0.28432314]
[1744519387854,16.31408781,131.36,131.32,0.28432314]
[1744519392551,7.6132,131.36,131.32,0.42648471]
[1744519393656,16.31408781,131.36,131.32,0.42648471]
[1744519395059,0.0001,131.37,131.32,0.28432314]
[1744519395263,8.70088781,131.36,131.32,0.28432314]
[1744519395756,8.70088781,131.33,131.27,0.14216157]
[1744519395963,8.70088781,131.3,131.26,1.5551]
[1744519396455,8.70088781,131.3,131.27,0.28432314]
[1744519396754,8.70088781,131.3,131.26,1.5551]
[1744519396956,8.70088781,131.3,131.27,0.28432314]
[1744519397759,8.70088781,131.3,131.26,1.5551]
[1744519397960,16.31698781,131.3,131.27,0.28432314]
[1744519398862,7.6161,131.3,131.27,0.28432314]
[1744519401167,16.31698781,131.3,131.26,0.28432314]
[1744519401547,7.6158,131.31,131.28,0.28432314]
[1744519403469,7.6138,131.34,131.28,9.12737252]
[1744519403640,16.31468781,131.34,131.3,0.28432314]
[1744519403843,8.70088781,131.33,131.3,0.28432314]
[1744519405149,7.6149,131.32,131.3,0.28432314]
[1744519405956,7.6149,131.32,131.28,0.28432314]
[1744519406663,7.6149,131.32,131.28,8.98521095]
[1744519406960,7.6149,131.32,131.28,0.28432314]
[1744519411479,8.70088781,131.32,131.28,0.28432314]
[1744519413469,7.6155,131.31,131.28,0.28432314]
[1744519416975,8.70088781,131.32,131.28,0.28432314]
[1744519419178,8.70088781,131.33,131.28,0.28432314]
[1744519419475,8.70088781,131.32,131.28,0.28432314]
[1744519419674,8.70088781,131.32,131.27,19.07613357]
[1744519419875,8.70088781,131.29,131.25,0.063]
[1744519420064,8.70088781,131.29,131.25,0.20516157]
[1744519420575,8.70088781,131.29,131.25,0.48948471]
[1744519421274,7.6173,131.28,131.25,0.48948471]
[1744519422179,16.31818781,131.28,131.25,0.48948471]
[1744519422359,7.6173,131.28,131.25,0.48948471]
[1744519422560,16.31818781,131.28,131.25,0.063]
[1744519428380,8.70088781,131.27,131.25,0.063]
[1744519428696,7.6173,131.28,131.25,0.063]
[1744519428697,8.70088781,131.26,131.25,0.063]
[1744519429055,7.619,131.25,131.24,0.063]
[1744519429384,18.64964886,131.24,131.23,7.802e-05]
[1744519429569,27.35053667,131.24,131.22,7.802e-05]
[1744519429762,8.70088781,131.23,131.22,7.802e-05]
[1744519431180,16.32108781,131.23,131.22,7.802e-05]
[1744519432791,16.32108781,131.23,131.21,7.802e-05]
[1744519432992,8.70088781,131.22,131.21,7.802e-05]
[1744519433160,16.32158781,131.22,131.21,7.802e-05]
[1744519437474,34.97123667,131.22,131.2,0.0001]
[1744519437671,8.70088781,131.21,131.2,0.0001]
[1744519439386,16.32218781,131.21,131.2,0.0001]
[1744519442180,7.6213,131.21,131.2,0.0001]
[1744519442496,8.70088781,131.22,131.2,0.0001]
[1744519443892,16.32188781,131.22,131.2,0.0001]
[1744519444880,8.70088781,131.21,131.2,0.0001]
[1744519446994,16.32218781,131.21,131.2,0.0001]
[1744519449600,51.12573905,131.21,131.19,0.063]
[1744519449776,8.70088781,131.2,131.19,0.0001]
[1744519450100,43.50443905,131.2,131.18,0.063]
[1744519450300,8.70088781,131.19,131.18,0.063]
[1744519451399,16.32338781,131.19,131.18,0.063]
[1744519455186,26.0,131.17,131.16,0.063]
[1744519455393,8.70088781,131.17,131.14,0.063]
[1744519455577,8.70088781,131.15,131.14,0.063]
[1744519457220,16.32568781,131.15,131.14,0.063]
[1744519459613,7.6248,131.15,131.14,0.063]
[1744519459906,8.70088781,131.16,131.14,0.063]
[1744519461011,7.6248,131.15,131.14,0.063]
[1744519461303,7.6244,131.16,131.14,0.063]
[1744519461507,7.6239,131.17,131.14,0.063]
[1744519461703,7.6239,131.17,131.14,0.48948471]
[1744519461899,7.6232,131.18,131.14,9.19037252]
[1744519462601,7.6227,131.19,131.15,8.70088781]
[1744519463500,8.70088781,131.22,131.19,0.28432314]
[1744519464710,16.32168781,131.22,131.19,0.28432314]
[1744519464912,7.6208,131.22,131.19,0.28432314]
[1744519465087,16.32168781,131.22,131.19,0.28432314]
[1744519465288,13.62709494,131.21,131.19,0.28432314]
[1744519466192,21.24859494,131.21,131.18,0.42648471]
[1744519466901,13.62709494,131.19,131.18,0.28432314]
[1744519468912,21.24959494,131.19,131.18,0.28432314]
[1744519470010,7.6225,131.19,131.18,0.28432314]
[1744519470716,21.24959494,131.19,131.14,6.3318]
[1744519471009,13.62709494,131.16,131.14,0.34732314]
[1744519471199,13.62709494,131.15,131.14,0.063]
[1744519472612,21.25189494,131.15,131.14,0.063]
[1744519474896,26.6788,131.19,131.14,0.063]
[1744519475096,13.62709494,131.17,131.14,0.063]
[1744519476209,7.6242,131.16,131.14,0.063]
[1744519477318,13.62709494,131.18,131.14,0.34732314]
[1744519478296,21.25039494,131.18,131.14,0.34732314]
[1744519479118,13.62709494,131.17,131.14,0.34732314]
[1744519479601,13.62709494,131.17,131.14,0.063]
[1744519480522,21.25119494,131.17,131.14,0.063]
[1744519482619,13.62709494,131.15,131.14,0.063]
[1744519482920,13.62709494,131.16,131.14,0.063]
[1744519484228,7.6248,131.15,131.14,0.063]
[1744519486731,16.35181542,131.16,131.14,0.063]
[1744519488626,26.6788,131.19,131.14,0.063]
[1744519488826,8.72761542,131.17,131.14,0.48948471]
[1744519489015,26.6788,131.19,131.14,0.48948471]
[1744519489217,8.72761542,131.17,131.14,0.48948471]
[1744519489927,26.6788,131.19,131.14,0.48948471]
[1744519490233,8.72761542,131.17,131.14,0.48948471]
[1744519491031,7.6242,131.16,131.14,0.48948471]
[1744519496834,16.35181542,131.16,131.14,0.48948471]
[1744519497025,16.35181542,131.16,131.14,0.063]
[1744519499237,16.35181542,131.16,131.11,15.34021542]
[1744519501250,8.72761542,131.13,131.11,0.063]
[1744519501618,8.72761542,131.14,131.11,0.063]
[1744519503035,16.35181542,131.16,131.12,0.42648471]
[1744519503242,7.6242,131.16,131.12,0.42648471]
[1744519503439,16.35151542,131.17,131.12,27.80374899]
[1744519503747,8.72761542,131.18,131.14,0.14216157]
[1744519504841,8.72761542,131.18,131.14,0.42648471]
[1744519505026,7.6216,131.21,131.18,0.28432314]
[1744519505844,16.37851542,131.22,131.18,0.42648471]
[1744519506047,16.37851542,131.22,131.17,16.27770013]
[1744519506934,0.03,131.22,131.18,8.72761542]
[1744519507241,0.03,131.22,131.18,18.64964886]
[1744519507446,13.62240744,131.2,131.17,7.02]
[1744519508227,13.62240744,131.21,131.17,7.02]
[1744519508530,13.62240744,131.2,131.17,7.02]
[1744519508846,0.03,131.22,131.17,7.02]
[1744519509147,7.6219,131.2,131.17,7.02]
[1744519509748,21.24390744,131.21,131.17,7.02]
[1744519509934,7.651,131.22,131.18,14.04889215]
[1744519510138,21.27340744,131.22,131.18,0.42648471]
[1744519510451,7.651,131.22,131.18,14.04889215]
[1744519510755,21.27340744,131.22,131.18,0.42648471]
[1744519511257,0.03,131.22,131.18,32.69854101]
[1744519512036,0.03,131.22,131.21,0.42648471]
[1744519512234,0.03,131.22,131.2,0.42648471]
[1744519514452,0.03,131.22,131.2,8.04838471]
[1744519514630,0.03,131.22,131.2,7.54838471]
[1744519514831,0.03,131.22,131.2,21.17079215]
[1744519515030,0.03,131.22,131.21,13.62240744]
[1744519515427,0.03,131.22,131.21,39.8933563]
[1744519516629,0.03,131.22,131.21,40.31984101]
[1744519520757,0.03,131.22,131.21,46.47754101]
[1744519522652,0.03,131.22,131.21,50.23847575]
[1744519522857,0.03,131.22,131.21,44.08077575]
[1744519525158,0.03,131.22,131.21,125.68077575]
[1744519527340,0.03,131.22,131.21,120.7725285]
[1744519528362,0.03,131.22,131.21,104.43706831]
[1744519528553,0.03,131.22,131.21,18.79181043]
[1744519528742,0.03,131.22,131.21,26.555272]
[1744519528944,0.03,131.22,131.21,26.69743357]
[1744519529265,0.03,131.22,131.21,30.57876692]
[1744519530359,0.03,131.22,131.21,39.29292711]
[1744519531763,0.03,131.22,131.21,30.57876692]
[1744519532769,0.03,131.22,131.21,39.29292711]
[1744519533348,0.03,131.22,131.21,30.57876692]
[1744519535171,0.03,131.22,131.21,39.29292711]
[1744519535975,0.03,131.22,131.21,30.57876692]
[1744519537281,0.03,131.22,131.21,39.29292711]
[1744519539657,0.03,131.22,131.21,30.57876692]
[1744519539861,0.03,131.22,131.21,39.29292711]
[1744519546075,0.03,131.22,131.21,120.89292711]
[1744519556891,0.03,131.22,131.21,111.89444378]
[1744519557072,0.03,131.22,131.21,120.60860397]
[1744519557276,0.03,131.22,131.21,120.89292711]
[1744519557497,0.03,131.22,131.21,120.60860397]
[1744519557797,0.03,131.22,131.21,120.75076554]
[1744519557991,0.03,131.22,131.21,120.89292711]
[1744519559382,0.03,131.22,131.21,104.27314378]
[1744519559696,0.03,131.22,131.21,100.39181043]
[1744519559903,0.03,131.22,131.21,109.24813219]
[1744519560200,0.03,131.22,131.21,117.01159376]
[1744519560379,0.03,131.22,131.21,116.86943219]
[1744519560699,0.03,131.22,131.21,35.41159376]
[1744519561095,0.03,131.22,131.21,19.07613357]
[1744519561290,8.74416019,131.22,131.2,7.02]
[1744519561506,8.71416019,131.21,131.2,7.02]
[1744519561808,8.71416019,131.21,131.17,0.14216157]
[1744519561982,0.03,131.22,131.16,7.0]
[1744519561983,8.71416019,131.18,131.16,7.0]
[1744519562386,10.22826019,131.19,131.17,0.28432314]
[1744519563375,17.85106019,131.19,131.17,0.28432314]
[1744519563607,7.651,131.22,131.17,27.79029376]
[1744519563815,16.36516019,131.22,131.17,27.79029376]
[1744519564186,7.651,131.22,131.17,35.41379376]
[1744519564499,0.03,131.22,131.2,0.28432314]
[1744519564905,0.03,131.22,131.2,8.99848333]
[1744519565081,0.03,131.22,131.21,27.79029376]